[Event "*** Titled Tuesday Blitz"]
[Site "Chess.com"]
[Date "2021.04.20"]
[Round "10"]
[White "MatyChess1"]
[Black "AttractiveMustard"]
[Result "1-0"]
[WhiteElo "2623"]
[BlackElo "2368"]
[TimeControl "180+1"]
[EndTime "11:53:46 PDT"]
[Termination "MatyChess1 won on time"]

1. b3 {[%clk 0:03:00.9]} 1... e5 {[%clk 0:02:58.6]} 2. Bb2 {[%clk 0:03:00.8]}
2... Nc6 {[%clk 0:02:56.5]} 3. e3 {[%clk 0:02:59.7]} 3... Nf6 {[%clk 0:02:55.8]}
4. c4 {[%clk 0:02:58.1]} 4... d5 {[%clk 0:02:38.7]} 5. cxd5 {[%clk 0:02:59]}
5... Nxd5 {[%clk 0:02:37.6]} 6. a3 {[%clk 0:02:59.7]} 6... Be6 {[%clk
0:02:34.6]} 7. d3 {[%clk 0:03:00.6]} 7... Qd7 {[%clk 0:02:27.8]} 8. Nf3 {[%clk
0:03:01.3]} 8... f6 {[%clk 0:02:27.1]} 9. Nbd2 {[%clk 0:03:01.9]} 9... g5 {[%clk
0:02:23.8]} 10. h3 {[%clk 0:03:01.5]} 10... O-O-O {[%clk 0:02:23.1]} 11. b4
{[%clk 0:03:01.9]} 11... h5 {[%clk 0:02:22.3]} 12. b5 {[%clk 0:02:58.5]} 12...
Na5 {[%clk 0:02:17.2]} 13. Qa4 {[%clk 0:02:57.9]} 13... b6 {[%clk 0:02:16.7]}
14. Nc4 {[%clk 0:02:58.2]} 14... a6 {[%clk 0:02:12.6]} 15. Nxa5 {[%clk
0:02:50.2]} 15... axb5 {[%clk 0:02:12]} 16. Qc2 {[%clk 0:02:51.1]} 16... bxa5
{[%clk 0:02:11.7]} 17. d4 {[%clk 0:02:52]} 17... e4 {[%clk 0:02:02]} 18. Nd2
{[%clk 0:02:52.3]} 18... f5 {[%clk 0:02:01]} 19. Nb3 {[%clk 0:02:48.2]} 19... f4
{[%clk 0:01:38.8]} 20. Nc5 {[%clk 0:02:21.9]} 20... Bxc5 {[%clk 0:01:36.9]} 21.
Qxc5 {[%clk 0:02:22.8]} 21... fxe3 {[%clk 0:01:29.9]} 22. Bxb5 {[%clk
0:02:22.9]} 22... exf2+ {[%clk 0:01:24.3]} 23. Kxf2 {[%clk 0:02:22.5]} 23... Qd6
{[%clk 0:01:01.8]} 24. Rac1 {[%clk 0:02:15]} 24... Qf4+ {[%clk 0:00:44.8]} 25.
Kg1 {[%clk 0:02:13.3]} 25... Rhf8 {[%clk 0:00:44.1]} 26. Rf1 {[%clk 0:01:48.1]}
26... Qd2 {[%clk 0:00:21.9]} 27. Rxf8 {[%clk 0:01:39.1]} 27... Qxb2 {[%clk
0:00:01.9]} 28. Ba6+ {[%clk 0:01:33.8]} 28... Kd7 {[%clk 0:00:00.9]} 29. Qb5+
{[%clk 0:01:31.6]} 1-0

[Event "*** Titled Tuesday Blitz"]
[Site "Chess.com"]
[Date "2021.04.20"]
[Round "10"]
[White "ChampStan"]
[Black "Matols"]
[Result "1-0"]
[WhiteElo "2107"]
[BlackElo "2251"]
[TimeControl "180+1"]
[EndTime "11:53:53 PDT"]
[Termination "ChampStan won by resignation"]

1. d4 {[%clk 0:03:00.9]} 1... Nf6 {[%clk 0:02:59]} 2. c4 {[%clk 0:03:00.6]} 2...
e6 {[%clk 0:02:59.1]} 3. Nc3 {[%clk 0:03:00.4]} 3... Bb4 {[%clk 0:02:58.8]} 4.
Qc2 {[%clk 0:03:01]} 4... d5 {[%clk 0:02:58.5]} 5. a3 {[%clk 0:03:00]} 5...
Bxc3+ {[%clk 0:02:57.3]} 6. Qxc3 {[%clk 0:03:00.9]} 6... O-O {[%clk 0:02:56.6]}
7. Bg5 {[%clk 0:02:59.4]} 7... h6 {[%clk 0:02:50.7]} 8. Bh4 {[%clk 0:02:56.3]}
8... c6 {[%clk 0:02:47]} 9. e3 {[%clk 0:02:50.9]} 9... Nbd7 {[%clk 0:02:46.3]}
10. Bd3 {[%clk 0:02:45.8]} 10... Re8 {[%clk 0:02:45.4]} 11. Ne2 {[%clk
0:02:43.9]} 11... Qc7 {[%clk 0:02:41.7]} 12. O-O {[%clk 0:02:39.5]} 12... dxc4
{[%clk 0:02:31.6]} 13. Bxc4 {[%clk 0:02:36.1]} 13... e5 {[%clk 0:02:27.5]} 14.
Bg3 {[%clk 0:02:24.5]} 14... exd4 {[%clk 0:02:22.2]} 15. Nxd4 {[%clk 0:02:19]}
15... Qb6 {[%clk 0:02:17]} 16. Nf5 {[%clk 0:02:13.5]} 16... Qc5 {[%clk 0:01:34]}
17. Nd6 {[%clk 0:01:57.2]} 17... Re7 {[%clk 0:01:27.9]} 18. Rfd1 {[%clk
0:01:49.8]} 18... Qh5 {[%clk 0:01:07.7]} 19. h3 {[%clk 0:01:31.8]} 19... Nb6
{[%clk 0:01:05.9]} 20. Ba2 {[%clk 0:01:18.4]} 20... Nbd5 {[%clk 0:00:58.1]} 21.
Qc5 {[%clk 0:01:11.9]} 21... Qg6 {[%clk 0:00:33.2]} 22. Nxc8 {[%clk 0:01:02.4]}
22... Rxc8 {[%clk 0:00:32]} 23. Bxd5 {[%clk 0:01:02.2]} 23... Nxd5 {[%clk
0:00:21.5]} 24. Rxd5 {[%clk 0:01:01]} 1-0

[Event "*** Titled Tuesday Blitz"]
[Site "Chess.com"]
[Date "2021.04.20"]
[Round "10"]
[White "GMJustin"]
[Black "lacafi"]
[Result "0-1"]
[WhiteElo "2288"]
[BlackElo "2227"]
[TimeControl "180+1"]
[EndTime "11:54:03 PDT"]
[Termination "lacafi won by checkmate"]

1. e4 {[%clk 0:02:48.2]} 1... c6 {[%clk 0:02:59.8]} 2. d4 {[%clk 0:02:47.8]}
2... d5 {[%clk 0:03:00.7]} 3. e5 {[%clk 0:02:47.8]} 3... Bf5 {[%clk 0:03:00.2]}
4. Bd3 {[%clk 0:02:47.8]} 4... Bxd3 {[%clk 0:03:00.3]} 5. Qxd3 {[%clk
0:02:48.5]} 5... e6 {[%clk 0:03:01.2]} 6. Ne2 {[%clk 0:02:47.1]} 6... Ne7 {[%clk
0:03:00.9]} 7. Nd2 {[%clk 0:02:46.8]} 7... Nd7 {[%clk 0:03:01.4]} 8. Nf3 {[%clk
0:02:44.6]} 8... c5 {[%clk 0:03:01.7]} 9. O-O {[%clk 0:02:39.1]} 9... Nc6 {[%clk
0:03:01.3]} 10. c3 {[%clk 0:02:31.6]} 10... Be7 {[%clk 0:03:01.3]} 11. Nf4
{[%clk 0:02:08.4]} 11... O-O {[%clk 0:02:54.7]} 12. h4 {[%clk 0:02:00.3]} 12...
Rc8 {[%clk 0:02:51.6]} 13. a3 {[%clk 0:01:29.5]} 13... Bxh4 {[%clk 0:02:43.7]}
14. Nxh4 {[%clk 0:01:25.8]} 14... Qxh4 {[%clk 0:02:43.2]} 15. g3 {[%clk
0:01:24.9]} 15... Qg4 {[%clk 0:02:38.3]} 16. Kg2 {[%clk 0:01:21.7]} 16... cxd4
{[%clk 0:02:32.9]} 17. cxd4 {[%clk 0:01:19.6]} 17... g6 {[%clk 0:01:44.5]} 18.
Be3 {[%clk 0:01:16.1]} 18... Ndxe5 {[%clk 0:01:17.1]} 19. dxe5 {[%clk
0:01:12.8]} 19... Nxe5 {[%clk 0:01:16.5]} 20. Qe2 {[%clk 0:00:59.7]} 20... Qxe2
{[%clk 0:00:57]} 21. Nxe2 {[%clk 0:01:00.6]} 21... Rc2 {[%clk 0:00:53.9]} 22.
Nf4 {[%clk 0:00:59.7]} 22... Ng4 {[%clk 0:00:46.9]} 23. Bxa7 {[%clk 0:00:43.6]}
23... Ra8 {[%clk 0:00:43.4]} 24. Kh3 {[%clk 0:00:32.4]} 24... h5 {[%clk
0:00:37.6]} 25. f3 {[%clk 0:00:16.3]} 25... Rh2# {[%clk 0:00:35.7]} 0-1

[Event "*** Titled Tuesday Blitz"]
[Site "Chess.com"]
[Date "2021.04.20"]
[Round "10"]
[White "C_K_G"]
[Black "WcmDominicToretto"]
[Result "1-0"]
[WhiteElo "2088"]
[BlackElo "1876"]
[TimeControl "180+1"]
[EndTime "11:54:08 PDT"]
[Termination "C_K_G won by resignation"]

1. e4 {[%clk 0:02:56.2]} 1... e5 {[%clk 0:02:58.7]} 2. Nf3 {[%clk 0:02:55.4]}
2... Nc6 {[%clk 0:02:58]} 3. Bc4 {[%clk 0:02:55.4]} 3... Bc5 {[%clk 0:02:54.6]}
4. c3 {[%clk 0:02:55.1]} 4... Nf6 {[%clk 0:02:54]} 5. d4 {[%clk 0:02:55.1]} 5...
exd4 {[%clk 0:02:53.6]} 6. cxd4 {[%clk 0:02:56]} 6... Bb4+ {[%clk 0:02:51.2]} 7.
Nc3 {[%clk 0:02:55.7]} 7... Nxe4 {[%clk 0:02:50.7]} 8. O-O {[%clk 0:02:56.1]}
8... Bxc3 {[%clk 0:02:48.3]} 9. d5 {[%clk 0:02:56.1]} 9... Na5 {[%clk
0:02:42.1]} 10. Bd3 {[%clk 0:02:53.3]} 10... Bf6 {[%clk 0:02:28.3]} 11. Qe2
{[%clk 0:02:46.1]} 11... O-O {[%clk 0:02:23.6]} 12. Qxe4 {[%clk 0:02:44.4]}
12... g6 {[%clk 0:02:23.1]} 13. d6 {[%clk 0:02:40.5]} 13... cxd6 {[%clk
0:02:18]} 14. Re1 {[%clk 0:02:25.6]} 14... Nc6 {[%clk 0:02:07.3]} 15. Bh6 {[%clk
0:02:24]} 15... Bg7 {[%clk 0:02:00.9]} 16. Qf4 {[%clk 0:02:17.9]} 16... Ne5
{[%clk 0:01:52.1]} 17. Bxg7 {[%clk 0:02:05.3]} 17... Nxd3 {[%clk 0:01:49.8]} 18.
Qh6 {[%clk 0:01:57]} 18... Nxe1 {[%clk 0:01:45.8]} 19. Ng5 {[%clk 0:01:52.3]}
19... Nf3+ {[%clk 0:01:30.4]} 20. gxf3 {[%clk 0:01:45]} 20... Qxg5+ {[%clk
0:01:18.2]} 21. Qxg5 {[%clk 0:01:44.3]} 21... Kxg7 {[%clk 0:01:18.4]} 22. Qe7
{[%clk 0:01:34.4]} 22... b6 {[%clk 0:01:15]} 23. Qxd6 {[%clk 0:01:32.9]} 23...
Bb7 {[%clk 0:01:06.2]} 24. Qxd7 {[%clk 0:01:32.4]} 24... Bxf3 {[%clk 0:01:05.6]}
25. Qd4+ {[%clk 0:01:30.1]} 25... Kg8 {[%clk 0:00:58.1]} 26. Re1 {[%clk
0:01:28.3]} 26... Rad8 {[%clk 0:00:52.7]} 27. Qf6 {[%clk 0:01:25.2]} 27... Ba8
{[%clk 0:00:44.7]} 28. h4 {[%clk 0:01:23.3]} 28... Rfe8 {[%clk 0:00:33.5]} 29.
Rxe8+ {[%clk 0:01:14]} 29... Rxe8 {[%clk 0:00:34.4]} 30. h5 {[%clk 0:01:12.5]}
30... Re1+ {[%clk 0:00:32.3]} 31. Kh2 {[%clk 0:01:12.5]} 31... Rh1+ {[%clk
0:00:32.4]} 32. Kg3 {[%clk 0:01:12.5]} 32... Rg1+ {[%clk 0:00:30.4]} 33. Kf4
{[%clk 0:01:11.3]} 33... Bc6 {[%clk 0:00:22.3]} 34. h6 {[%clk 0:01:08]} 34...
Kf8 {[%clk 0:00:19.6]} 35. Qxc6 {[%clk 0:01:05.5]} 1-0

[Event "*** Titled Tuesday Blitz"]
[Site "Chess.com"]
[Date "2021.04.20"]
[Round "10"]
[White "DeTimmerman"]
[Black "Cptn2"]
[Result "1-0"]
[WhiteElo "2816"]
[BlackElo "2598"]
[TimeControl "180+1"]
[EndTime "11:54:14 PDT"]
[Termination "DeTimmerman won by resignation"]

1. b4 {[%clk 0:03:00.9]} 1... e5 {[%clk 0:02:56.8]} 2. Bb2 {[%clk 0:03:01.2]}
2... d6 {[%clk 0:02:54.6]} 3. b5 {[%clk 0:03:01]} 3... g6 {[%clk 0:02:53.9]} 4.
a4 {[%clk 0:03:01.9]} 4... Bg7 {[%clk 0:02:53.8]} 5. c4 {[%clk 0:03:02.8]} 5...
Ne7 {[%clk 0:02:54.4]} 6. e3 {[%clk 0:03:03.4]} 6... O-O {[%clk 0:02:55]} 7. Nf3
{[%clk 0:03:04.1]} 7... f5 {[%clk 0:02:55]} 8. Be2 {[%clk 0:03:04]} 8... Kh8
{[%clk 0:02:50]} 9. O-O {[%clk 0:03:03.7]} 9... c6 {[%clk 0:02:48.8]} 10. d4
{[%clk 0:02:53.4]} 10... e4 {[%clk 0:02:48.8]} 11. Nfd2 {[%clk 0:02:52.7]} 11...
Nd7 {[%clk 0:02:48.5]} 12. Nc3 {[%clk 0:02:50.3]} 12... c5 {[%clk 0:02:47.9]}
13. dxc5 {[%clk 0:02:50.1]} 13... dxc5 {[%clk 0:02:45.1]} 14. Qc2 {[%clk
0:02:49.5]} 14... b6 {[%clk 0:02:41.4]} 15. Rad1 {[%clk 0:02:29.9]} 15... Qc7
{[%clk 0:02:40.8]} 16. f3 {[%clk 0:02:29.1]} 16... exf3 {[%clk 0:02:38.6]} 17.
Bxf3 {[%clk 0:02:29]} 17... Bb7 {[%clk 0:02:39]} 18. e4 {[%clk 0:02:29.7]} 18...
Bd4+ {[%clk 0:01:58.6]} 19. Kh1 {[%clk 0:02:28.6]} 19... fxe4 {[%clk 0:01:51.1]}
20. Ndxe4 {[%clk 0:02:28.2]} 20... Nf5 {[%clk 0:01:46.1]} 21. Rfe1 {[%clk
0:02:20.8]} 21... Ne5 {[%clk 0:01:41.3]} 22. Ne2 {[%clk 0:02:07.5]} 22... Nxf3
{[%clk 0:01:37.2]} 23. gxf3 {[%clk 0:02:08.4]} 23... Rad8 {[%clk 0:01:37.3]} 24.
Nxd4 {[%clk 0:01:45.3]} 24... cxd4 {[%clk 0:01:24.8]} 25. Qf2 {[%clk 0:01:24.1]}
25... Qf4 {[%clk 0:01:17.6]} 26. Bxd4+ {[%clk 0:01:11.5]} 26... Kg8 {[%clk
0:01:04.8]} 27. Be3 {[%clk 0:01:11]} 27... Nxe3 {[%clk 0:01:02.7]} 28. Rxd8
{[%clk 0:01:10.4]} 28... Rxd8 {[%clk 0:00:51.2]} 29. Qxe3 {[%clk 0:01:10.3]}
29... Qxe3 {[%clk 0:00:44.9]} 30. Rxe3 {[%clk 0:01:11.2]} 30... Rd4 {[%clk
0:00:45.6]} 31. c5 {[%clk 0:01:04.9]} 31... Bxe4 {[%clk 0:00:41.6]} 32. Rxe4
{[%clk 0:01:05.8]} 32... bxc5 {[%clk 0:00:27.6]} 33. Rxd4 {[%clk 0:00:59.5]}
33... cxd4 {[%clk 0:00:27.8]} 34. Kg2 {[%clk 0:01:00.2]} 34... Kf7 {[%clk
0:00:25.8]} 35. a5 {[%clk 0:01:00.3]} 35... Ke6 {[%clk 0:00:26.2]} 36. b6 {[%clk
0:01:00]} 36... axb6 {[%clk 0:00:25.9]} 37. a6 {[%clk 0:00:59.6]} 1-0

[Event "*** Titled Tuesday Blitz"]
[Site "Chess.com"]
[Date "2021.04.20"]
[Round "10"]
[White "WinstonSilvakov"]
[Black "Guzman70"]
[Result "0-1"]
[WhiteElo "2088"]
[BlackElo "2290"]
[TimeControl "180+1"]
[EndTime "11:54:14 PDT"]
[Termination "Guzman70 won by resignation"]

1. e4 {[%clk 0:03:00.6]} 1... c5 {[%clk 0:02:58.7]} 2. Nf3 {[%clk 0:02:59.7]}
2... d6 {[%clk 0:02:56.4]} 3. d4 {[%clk 0:03:00.6]} 3... cxd4 {[%clk 0:02:56.1]}
4. c3 {[%clk 0:03:01.5]} 4... dxc3 {[%clk 0:02:54.8]} 5. Nxc3 {[%clk 0:03:02.4]}
5... Nf6 {[%clk 0:02:54.4]} 6. Bc4 {[%clk 0:03:03.3]} 6... a6 {[%clk 0:02:51]}
7. O-O {[%clk 0:02:59.2]} 7... Nc6 {[%clk 0:02:49.2]} 8. Qe2 {[%clk 0:02:58.6]}
8... Bg4 {[%clk 0:02:45.8]} 9. Rd1 {[%clk 0:02:54.8]} 9... e6 {[%clk 0:02:44.3]}
10. Bb3 {[%clk 0:02:47.4]} 10... Be7 {[%clk 0:02:39.4]} 11. Bf4 {[%clk
0:02:46.5]} 11... e5 {[%clk 0:02:33.8]} 12. Bg5 {[%clk 0:02:43]} 12... O-O
{[%clk 0:02:30.5]} 13. Bxf6 {[%clk 0:02:37.8]} 13... Bxf6 {[%clk 0:02:30]} 14.
Nd5 {[%clk 0:02:38.7]} 14... Nd4 {[%clk 0:02:27.3]} 15. Rxd4 {[%clk 0:02:37.8]}
15... exd4 {[%clk 0:02:27.3]} 16. Qd3 {[%clk 0:02:36.3]} 16... Be6 {[%clk
0:02:17.4]} 17. Nxd4 {[%clk 0:02:33.6]} 17... Bxd5 {[%clk 0:02:17.3]} 18. Bxd5
{[%clk 0:02:32.9]} 18... Rc8 {[%clk 0:02:14.6]} 19. Bxb7 {[%clk 0:02:22.1]}
19... Rc5 {[%clk 0:01:47.9]} 20. Bd5 {[%clk 0:02:09.6]} 20... Qb6 {[%clk
0:01:43.5]} 21. Nb3 {[%clk 0:01:55.2]} 21... Rc7 {[%clk 0:01:37.6]} 22. Qd2
{[%clk 0:01:48.6]} 22... Rfc8 {[%clk 0:01:24.5]} 23. Qd3 {[%clk 0:01:22.8]}
23... a5 {[%clk 0:01:18.6]} 24. h3 {[%clk 0:01:14.1]} 24... a4 {[%clk
0:01:17.9]} 25. Nd2 {[%clk 0:01:14]} 25... Bxb2 {[%clk 0:01:12.8]} 26. Rb1
{[%clk 0:01:12.9]} 26... a3 {[%clk 0:01:01.1]} 27. Qf3 {[%clk 0:01:10.1]} 27...
Qd4 {[%clk 0:00:49.2]} 28. Nc4 {[%clk 0:01:06.4]} 28... Rxc4 {[%clk 0:00:44.1]}
29. Qxf7+ {[%clk 0:00:59.7]} 29... Kh8 {[%clk 0:00:43.7]} 0-1

[Event "*** Titled Tuesday Blitz"]
[Site "Chess.com"]
[Date "2021.04.20"]
[Round "10"]
[White "pastouche06"]
[Black "blitzking1729"]
[Result "0-1"]
[WhiteElo "2560"]
[BlackElo "2654"]
[TimeControl "180+1"]
[EndTime "11:54:20 PDT"]
[Termination "blitzking1729 won by resignation"]

1. d4 {[%clk 0:02:54.9]} 1... d6 {[%clk 0:02:56.5]} 2. e4 {[%clk 0:02:52.8]}
2... Nf6 {[%clk 0:02:56.2]} 3. f3 {[%clk 0:02:52.4]} 3... e5 {[%clk 0:02:55.9]}
4. Ne2 {[%clk 0:02:52.2]} 4... c6 {[%clk 0:02:54]} 5. c4 {[%clk 0:02:51.7]} 5...
Nbd7 {[%clk 0:02:52.8]} 6. Nbc3 {[%clk 0:02:50.7]} 6... g6 {[%clk 0:02:52.8]} 7.
Be3 {[%clk 0:02:50.4]} 7... Bg7 {[%clk 0:02:53]} 8. Qd2 {[%clk 0:02:50.7]} 8...
O-O {[%clk 0:02:52.6]} 9. d5 {[%clk 0:02:50.8]} 9... cxd5 {[%clk 0:02:51.5]} 10.
cxd5 {[%clk 0:02:50.7]} 10... a6 {[%clk 0:02:50.4]} 11. Ng3 {[%clk 0:02:46.7]}
11... b5 {[%clk 0:02:50]} 12. a3 {[%clk 0:02:46.4]} 12... Nh5 {[%clk 0:02:31.3]}
13. Nxh5 {[%clk 0:02:25.9]} 13... gxh5 {[%clk 0:02:31.2]} 14. Be2 {[%clk
0:02:18.9]} 14... f5 {[%clk 0:02:23.7]} 15. exf5 {[%clk 0:02:18.6]} 15... Rxf5
{[%clk 0:02:23.6]} 16. Ne4 {[%clk 0:02:07.4]} 16... Qe7 {[%clk 0:02:13.9]} 17.
O-O {[%clk 0:01:58.4]} 17... h4 {[%clk 0:02:09.1]} 18. Bg5 {[%clk 0:01:49.9]}
18... Qf8 {[%clk 0:02:04.9]} 19. Bxh4 {[%clk 0:01:44.5]} 19... Nb6 {[%clk
0:01:49.8]} 20. Qb4 {[%clk 0:01:07.3]} 20... Nxd5 {[%clk 0:01:24.5]} 21. Qxd6
{[%clk 0:01:07.3]} 21... Nf4 {[%clk 0:01:23.3]} 22. Bd1 {[%clk 0:00:52.3]} 22...
Be6 {[%clk 0:01:17.1]} 23. Qxf8+ {[%clk 0:00:46.5]} 23... Rfxf8 {[%clk
0:01:11.5]} 24. Nc5 {[%clk 0:00:38]} 24... Bc4 {[%clk 0:01:01.1]} 25. Re1 {[%clk
0:00:32.6]} 25... e4 {[%clk 0:01:00.7]} 26. Nxe4 {[%clk 0:00:23.4]} 26... Nd3
{[%clk 0:00:57.6]} 27. Re2 {[%clk 0:00:15.2]} 27... Nxb2 {[%clk 0:00:57.3]} 28.
Rb1 {[%clk 0:00:10.2]} 28... Nxd1 {[%clk 0:00:56.4]} 29. Rxd1 {[%clk 0:00:06.9]}
29... Bxe2 {[%clk 0:00:55.7]} 30. Rd7 {[%clk 0:00:07.4]} 30... Rf7 {[%clk
0:00:54.1]} 0-1

[Event "*** Titled Tuesday Blitz"]
[Site "Chess.com"]
[Date "2021.04.20"]
[Round "10"]
[White "Harald_Schmidt"]
[Black "artichaud"]
[Result "1-0"]
[WhiteElo "2404"]
[BlackElo "2234"]
[TimeControl "180+1"]
[EndTime "11:54:21 PDT"]
[Termination "Harald_Schmidt won by resignation"]

1. e4 {[%clk 0:03:00.1]} 1... d5 {[%clk 0:02:59.5]} 2. exd5 {[%clk 0:02:52.6]}
2... Qxd5 {[%clk 0:03:00.4]} 3. Nc3 {[%clk 0:02:49.8]} 3... Qd6 {[%clk
0:02:59.9]} 4. b3 {[%clk 0:02:45.5]} 4... Nf6 {[%clk 0:02:59.2]} 5. Bb2 {[%clk
0:02:41]} 5... Nc6 {[%clk 0:02:53.2]} 6. Bb5 {[%clk 0:02:36.1]} 6... a6 {[%clk
0:02:49.2]} 7. Bxc6+ {[%clk 0:02:35.1]} 7... Qxc6 {[%clk 0:02:50.1]} 8. f3
{[%clk 0:02:30.5]} 8... b5 {[%clk 0:02:37.2]} 9. Nge2 {[%clk 0:02:19.6]} 9...
Bb7 {[%clk 0:02:35.8]} 10. Nd4 {[%clk 0:02:11.7]} 10... Qd7 {[%clk 0:02:27.3]}
11. Nde2 {[%clk 0:01:59.1]} 11... e6 {[%clk 0:02:14.3]} 12. Ng3 {[%clk
0:01:51.9]} 12... Be7 {[%clk 0:01:51.9]} 13. Qe2 {[%clk 0:01:45.5]} 13... c5
{[%clk 0:01:41.6]} 14. Nce4 {[%clk 0:01:42.3]} 14... Nxe4 {[%clk 0:01:35]} 15.
fxe4 {[%clk 0:01:38.4]} 15... f6 {[%clk 0:01:22.9]} 16. O-O {[%clk 0:01:30.6]}
16... O-O {[%clk 0:01:15.9]} 17. d3 {[%clk 0:01:29.2]} 17... Rac8 {[%clk
0:01:04.6]} 18. Rad1 {[%clk 0:01:27.3]} 18... Rfe8 {[%clk 0:00:53.6]} 19. Qg4
{[%clk 0:01:24.1]} 19... Kh8 {[%clk 0:00:48.8]} 20. Nh5 {[%clk 0:01:14.6]} 20...
Bd8 {[%clk 0:00:42.3]} 21. Nxf6 {[%clk 0:00:50.1]} 21... gxf6 {[%clk 0:00:16.8]}
22. Rxf6 {[%clk 0:00:48.7]} 22... e5 {[%clk 0:00:04]} 23. Qxd7 {[%clk
0:00:47.5]} 23... Bxf6 {[%clk 0:00:04.5]} 24. Qxb7 {[%clk 0:00:47.2]} 1-0

[Event "*** Titled Tuesday Blitz"]
[Site "Chess.com"]
[Date "2021.04.20"]
[Round "10"]
[White "alejanchess73"]
[Black "tteshan"]
[Result "1-0"]
[WhiteElo "2445"]
[BlackElo "2242"]
[TimeControl "180+1"]
[EndTime "11:54:21 PDT"]
[Termination "alejanchess73 won by resignation"]

1. e4 {[%clk 0:03:00.9]} 1... c5 {[%clk 0:03:00.3]} 2. Nf3 {[%clk 0:03:00.6]}
2... Nc6 {[%clk 0:02:58.1]} 3. Bc4 {[%clk 0:03:00.9]} 3... e6 {[%clk 0:02:57.4]}
4. d3 {[%clk 0:03:00.2]} 4... g6 {[%clk 0:02:55.5]} 5. c3 {[%clk 0:03:00]} 5...
Bg7 {[%clk 0:02:55.9]} 6. O-O {[%clk 0:02:59]} 6... Nge7 {[%clk 0:02:55.7]} 7.
Bg5 {[%clk 0:02:57.8]} 7... h6 {[%clk 0:02:55.2]} 8. Bh4 {[%clk 0:02:58]} 8...
O-O {[%clk 0:02:51.2]} 9. Nbd2 {[%clk 0:02:55.7]} 9... d5 {[%clk 0:02:50.7]} 10.
Bb3 {[%clk 0:02:54.8]} 10... Qc7 {[%clk 0:02:46.2]} 11. Bg3 {[%clk 0:02:47.1]}
11... Qd7 {[%clk 0:02:35.7]} 12. Re1 {[%clk 0:02:46.2]} 12... b6 {[%clk
0:02:34.8]} 13. Ba4 {[%clk 0:02:40]} 13... Bb7 {[%clk 0:02:32]} 14. Ne5 {[%clk
0:02:34.1]} 14... Qc8 {[%clk 0:02:29.4]} 15. f4 {[%clk 0:02:29.4]} 15... Nxe5
{[%clk 0:02:28.3]} 16. fxe5 {[%clk 0:02:29.2]} 16... a6 {[%clk 0:02:06.1]} 17.
Kh1 {[%clk 0:02:24.4]} 17... b5 {[%clk 0:02:06.2]} 18. Bc2 {[%clk 0:02:23.8]}
18... d4 {[%clk 0:02:04.2]} 19. cxd4 {[%clk 0:02:20.3]} 19... cxd4 {[%clk
0:02:05.1]} 20. Nf3 {[%clk 0:02:20.6]} 20... Nc6 {[%clk 0:02:04.3]} 21. Rc1
{[%clk 0:02:19.3]} 21... Qd7 {[%clk 0:02:02.5]} 22. Bb3 {[%clk 0:02:13.4]} 22...
Rac8 {[%clk 0:02:01.2]} 23. a3 {[%clk 0:02:13.2]} 23... Rc7 {[%clk 0:01:59.2]}
24. h4 {[%clk 0:02:09.3]} 24... Rfc8 {[%clk 0:01:58.6]} 25. Qd2 {[%clk
0:02:02.4]} 25... a5 {[%clk 0:01:19.2]} 26. Ba2 {[%clk 0:01:56.8]} 26... b4
{[%clk 0:01:15.9]} 27. Bc4 {[%clk 0:01:54.8]} 27... Qe7 {[%clk 0:01:07.3]} 28.
a4 {[%clk 0:01:54.7]} 28... Nb8 {[%clk 0:01:02.4]} 29. b3 {[%clk 0:01:53.3]}
29... Rd8 {[%clk 0:00:34.7]} 30. Kh2 {[%clk 0:01:45]} 30... Na6 {[%clk
0:00:29.9]} 31. Rh1 {[%clk 0:01:43.1]} 31... Nc5 {[%clk 0:00:28.1]} 32. Kg1
{[%clk 0:01:42.8]} 32... h5 {[%clk 0:00:22.2]} 33. Bf4 {[%clk 0:01:39.9]} 33...
Rdc8 {[%clk 0:00:19.5]} 34. Rf1 {[%clk 0:01:37.3]} 34... Qd7 {[%clk 0:00:16.1]}
35. Bh6 {[%clk 0:01:35.1]} 35... Kh7 {[%clk 0:00:05.4]} 36. Bxg7 {[%clk
0:01:34.5]} 36... Kxg7 {[%clk 0:00:06.3]} 37. Ng5 {[%clk 0:01:34.5]} 37... Rf8
{[%clk 0:00:06.1]} 38. Rh3 {[%clk 0:01:32.3]} 38... Qd8 {[%clk 0:00:05.8]} 39.
Rhf3 {[%clk 0:01:31.4]} 39... Bc6 {[%clk 0:00:03.2]} 40. Bxe6 {[%clk 0:01:26.3]}
40... Nxe6 {[%clk 0:00:02.8]} 41. Nxe6+ {[%clk 0:01:26.1]} 41... fxe6 {[%clk
0:00:03.1]} 42. Rxf8 {[%clk 0:01:26.4]} 42... Qxf8 {[%clk 0:00:02.5]} 43. Rxf8
{[%clk 0:01:26.3]} 43... Kxf8 {[%clk 0:00:03.4]} 44. Qh6+ {[%clk 0:01:25.5]}
44... Kf7 {[%clk 0:00:03.6]} 45. Qh7+ {[%clk 0:01:25.7]} 1-0